Cogmind - Beta 16.1 @@@ ROGUE MODE // 2026.04.16 @ 22:16:16 Player: SunShine214 Result: Destroyed by 5N-XJC(R) with Subdweller Machine Gun Performance ------------- Evolutions (0) 0 Regions Visited (2) 400 Robots Destroyed (16) 80 Value Destroyed (427) 427 Prototype IDs (0) 0 Alien Tech Used (0) 0 Bonus (0) 0 TOTAL SCORE: 907 Bonus ------- None Cogmind --------- Core Integrity 0/250 Matter 237/300 Energy 5/100 System Corruption 0% Temperature Cool (2) Movement Flying (37) Location -10/Subcaves Parts ------- > --- POWER (1) -------- (None) > --- PROPULSION (2) --- Flight Unit Flight Unit > --- UTILITY (2) ------ (None) > --- WEAPON (2) ------- Medium Laser > --- INVENTORY (5) ---- Light Nuclear Core Aluminum Leg Aluminum Leg Medium Storage Unit Mining Laser Peak State ------------ > --- POWER ------------ Light Nuclear Core > --- PROPULSION ------- Aluminum Leg Aluminum Leg > --- UTILITY ---------- Medium Storage Unit > --- WEAPON ----------- Medium Laser Medium Laser > --- INVENTORY -------- Light Nuclear Core Light Treads Aluminum Leg Aluminum Leg Flight Unit Flight Unit Light Assault Rifle Mining Laser [Rating: 9] Favorites ----------- Power Light Ion Engine Engine Light Ion Engine Power Core Light Nuclear Core Propulsion Light Treads Treads Light Treads Leg Aluminum Leg Flight Unit Flight Unit Utility Medium Storage Unit Storage Medium Storage Unit Protection Light Armor Plating Weapon Medium Laser Energy Gun Medium Laser Ballistic Gun Light Assault Rifle Special Weapon Mining Laser Build | -11 -10 -10 ------- Run | Yrd Mat Sub Slots Evolved . | . . . Power . | . . . Propulsion . | . . . Utility . | . . . Weapon . | . . . Parts Attached 19 | 7 6 6 Power 3 | 1 1 1 Engine 2 | 1 . 1 Core 1 | . 1 . Reactor . | . . . Propulsion 8 | 2 3 3 Treads 2 | 2 . . Leg 3 | . 3 . Wheel . | . . . Hover . | . . . Flight 3 | . . 3 Utility 3 | 1 2 . Device . | . . . Storage 2 | 1 1 . Processor . | . . . Hackware . | . . . Protection 1 | . 1 . Artifact . | . . . Weapon 5 | 3 . 2 Energy Gun 3 | 2 . 1 Energy Cannon . | . . . Ballistic Gun 1 | 1 . . Ballistic Cannon . | . . . Launcher . | . . . Special Weapon 1 | . . 1 Impact Weapon . | . . . Slashing Weapon . | . . . Piercing Weapon . | . . . Special Melee Weapon . | . . . Unidentified Prototypes . | . . . Parts Lost 4 | . 3 1 Power 1 | . 1 . Propulsion 1 | . 1 . Utility 1 | . 1 . Weapon 1 | . . 1 Highest Loss Streak 2 | . 2 1 To Critical Strikes . | . . . Average Backups 3 | 1 3 5 Power . | . . 1 Propulsion 1 | . 1 2 Utility . | . . . Weapon 1 | 1 2 1 Tool/Special . | . . . Unused Backups 2 | . . 2 Power 1 | . . 1 Propulsion 1 | . . 1 Utility . | . . . Weapon . | . . . Tool/Special . | . . . Average Slot Usage (%) 73 | . 88 56 Engine 5 | . 9 . Core 1 | . 2 . Treads 10 | . 21 . Leg 3 | . 6 . Flight 12 | . . 26 Storage 7 | . 14 . Protection 3 | . 5 . Energy Gun 20 | . 28 13 Ballistic Gun 2 | . . 5 Special Weapon 4 | . . 8 Peak Build Rating 9 | 6 9 9 Average Rating 5 | 4 6 5 On Entrance 5 | . 6 9 Avg Prop Armor Cover (%) 15 | . 15 . Naked Turns . | . . . Heaviest Build 20 | 12 20 5 Greatest Support 40 | 40 40 8 Greatest Overweight (x) 1 | . 1 . Average Overweight (x) . | . . . Largest Inventory Capacity 10 | 8 10 10 Average Capacity 7 | 6 9 5 Most Carried 10 | 2 8 10 Average Carried 3 | 1 3 5 Final Capacity 10 | 8 10 5 Final Carried 8 | 2 8 5 Class Distribution -------------------- 100% | Mutant Dominant Class ---------------- Mutant | -10/Materials Mutant | -10/Subcaves Resources | -11 -10 -10 ----------- Run | Yrd Mat Sub Matter Collected 464 | 270 134 60 Remotely . | . . . Salvage Created 444 | 100 325 19 Parts 29 | 4 20 5 Haulers Intercepted . | . . . Recyclers Shooed . | . . . Parts Field Recycled . | . . . Retrieved Matter . | . . . Parts Self-Destructed 9 | . . 9 Prevented . | . . . Parts Restored . | . . . Kills | -11 -10 -10 ------- Run | Yrd Mat Sub Combat Hostiles Destroyed 13 | . 11 2 Guns 9 | . 7 2 AOE 4 | . 4 . Classes Destroyed 6 | 2 3 1 Tunneler 1 | 1 . . Recycler 1 | 1 . . Watcher 1 | . 1 . Swarmer 4 | . 3 1 Grunt 8 | . 8 . Subdweller 1 | . . 1 Best Kill Streak 4 | 2 4 1 Combat Bots Only 4 | . 4 1 Max Kills in Single Turn 4 | 1 4 1 Gunslinging . | . . . Exploded 4 | . 4 . Melee . | . . . Uniques/NPCs Destroyed . | . . . Combat | -11 -10 -10 -------- Run | Yrd Mat Sub Hostile Shots Fired 98 | . 68 30 Missed 26 | . 10 16 Hits 72 | . 58 14 Projectile 72 | . 58 14 Damage Taken 917 | . 701 216 Core 250 | . 150 100 Absorbed by Shields . | . . . Core Remaining (%) 100 | 100 . . Volleys Fired 46 | 3 28 15 Largest 2 | 2 2 2 Hottest 150 | 100 100 150 Shots Fired 89 | 6 53 30 Gun 84 | 6 53 25 Cannon . | . . . Launcher . | . . . Special 5 | . . 5 Kinetic 8 | . . 8 Thermal 74 | 6 53 15 Explosive . | . . . Electromagnetic 7 | . . 7 Robot Hit Streak 10 | 4 4 10 Robot Miss Streak 4 | 1 4 2 Penetration Max . | . . . Secondary Targets 1 | . 1 . Max Gunslinging Chain 1 | . 1 . Shots Hit Robots 49 | 5 31 13 Core Hits 25 | 3 17 5 Critical Kills . | . . . Critical Parts Destroyed . | . . . Critical Strikes 3 | 1 2 . Burn 3 | 1 2 . Melee Attacks . | . . . Impact . | . . . Slashing . | . . . Piercing . | . . . Sneak Attacks . | . . . Combat Hostiles . | . . . Follow-up Attacks . | . . . Damage Inflicted 1135 | 63 866 206 Guns 634 | 63 411 160 Cannons . | . . . Explosions 495 | . 449 46 Melee . | . . . Ramming 6 | . 6 . Kinetic 29 | . . 29 Thermal 1044 | 63 860 121 Explosive . | . . . Electromagnetic 56 | . . 56 Impact . | . . . Slashing . | . . . Piercing . | . . . Highest Corruption . | . . . Average Corruption . | . . . Corruption Purged . | . . . Corruption Blocked . | . . . Overload Shots . | . . . Overflow Damage 69 | . 62 7 Projectiles . | . . . Explosions 69 | . 62 7 Melee . | . . . Knockbacks . | . . . Impact . | . . . Kinetic . | . . . Secondary . | . . . Self-Inflicted Damage 199 | . 136 63 Shots 3 | . 2 1 Rammed . | . . . Targets Rammed 1 | . 1 . Kicked 1 | . 1 . Crushed . | . . . Highest Temperature 422 | 78 422 2 Average Temperature 171 | 33 187 2 Received Heat Transfer 177 | . 171 6 Effects 8 | . 8 . Shutdowns 1 | . 1 . Energy Bleed 1 | . 1 . Interference 5 | . 5 . Matter Decay 1 | . 1 . Siege Activations . | . . . Martial Activations . | . . . Shielding Activations . | . . . Robots Disrupted . | . . . Combat Hostiles . | . . . Robots Corrupted . | . . . Combat Hostiles . | . . . Parts Fried . | . . . Impact Corruptions . | . . . Robots Melted . | . . . Combat Hostiles . | . . . Parts Melted 6 | 1 5 . Heat Transferred 2150 | 259 1619 272 Parts Sabotaged . | . . . Parts Stolen . | . . . Parts Stripped . | . . . Power Chain Reactions 1 | . . 1 Alert | -11 -10 -10 ------- Run | Yrd Mat Sub Maximum Alert Level 1 | . 1 . Low Security (%) 64 | 100 54 . Level 1 35 | . 45 . Level 2 . | . . . Level 3 . | . . . Level 4 . | . . . Level 5 . | . . . High Security . | . . . Max Security . | . . . Peak Influence 262 | 10 262 . Initial . | . . . Average 100 | 1 127 . Influence Increases 399 | 10 369 20 Destroy 0b10 Robot/C 240 | . 220 20 Destroy 0b10 Robot/NC 15 | 10 5 . Destroy Leader 42 | . 42 . Disable Machine 30 | . 30 . Destroy Structure 27 | . 27 . Lose Combat Pursuer 45 | . 45 . Influence Decreases 399 | 10 127 262 Entered New Map 117 | . . 117 Time Decay 247 | 10 97 140 Lost Part 35 | . 30 5 Squads Dispatched 2 | . 2 . Investigation 1 | . 1 . Extermination . | . . . Reinforcement 1 | . 1 . Assault . | . . . Garrison . | . . . Intercept . | . . . Searches Triggered . | . . . Construction Impeded . | . . . Haulers Reinforced . | . . . Active Scanning Responses . | . . . Cargo Convoy Interrupts . | . . . Stealth | -11 -10 -10 --------- Run | Yrd Mat Sub Distress Signals 1 | . 1 . Communications Jammed . | . . . Distress Signals . | . . . Times Spotted 26 | . 20 6 Peak Tracking Total 7 | . 7 3 Tactical Retreats 3 | . 2 1 Traps | -11 -10 -10 ------- Run | Yrd Mat Sub Traps Triggered 1 | . 1 . Indirectly . | . . . Trap Hack Attempts . | . . . Triggered . | . . . Disarmed . | . . . Reprogrammed . | . . . Reused . | . . . Traps Extracted . | . . . Installed . | . . . Triggered . | . . . Machines | -11 -10 -10 ---------- Run | Yrd Mat Sub Machines Disabled 3 | . 3 . Max in Single Turn 3 | . 3 . Machines Repaired . | . . . Machines Dismantled . | . . . Machines Sabotaged . | . . . Overloaded Fab Kills . | . . . Hacking | -11 -10 -10 --------- Run | Yrd Mat Sub Machines Accessed . | . . . Terminals . | . . . Fabricators . | . . . Repair Stations . | . . . Recycling Units . | . . . Scanalyzers . | . . . Garrison Access . | . . . Total Hacks . | . . . Successful . | . . . Failed . | . . . Catastrophic . | . . . Database Lockouts . | . . . Manual . | . . . Terminals . | . . . Fabricators . | . . . Repair Stations . | . . . Recycling Units . | . . . Scanalyzers . | . . . Garrison Access . | . . . Terminal Hacks . | . . . Fabricator Hacks . | . . . Repair Station Hacks . | . . . Recycling Unit Hacks . | . . . Scanalyzer . | . . . Garrison Access Hacks . | . . . Unauthorized Hacks . | . . . Terminals . | . . . Fabricators . | . . . Repair Stations . | . . . Recycling Units . | . . . Scanalyzers . | . . . Garrison Access . | . . . Data Cores Recovered . | . . . Used . | . . . Hacking Detections . | . . . Full Trace Events . | . . . Feedback Events . | . . . Feedback Blocked . | . . . Robot Schematics Acquired . | . . . Robots Built . | . . . Authchips . | . . . Time . | . . . Total Robot Build Rating . | . . . Part Schematics Acquired . | . . . Parts Built . | . . . Authchips . | . . . Time . | . . . Total Part Build Rating . | . . . Part Studies Acquired . | . . . Parts Repaired . | . . . Time . | . . . Parts Recycled . | . . . Recycled Matter . | . . . Retrieved Matter . | . . . Retrieved Components . | . . . Parts Scanalyzed . | . . . Part Schematics Acquired . | . . . Parts Damaged . | . . . Bothacking | -11 -10 -10 ------------ Run | Yrd Mat Sub Used RIF Installer . | . . . Robots Hacked . | . . . Non-combat . | . . . Combat . | . . . Robot Hacks Applied . | . . . Relay Couplers Released . | . . . Fabnet Peak Effective % . | . . . Robots Rewired . | . . . Allies Hacked . | . . . Hacks Repelled . | . . . Allies | -11 -10 -10 -------- Run | Yrd Mat Sub Total Allies . | . . . Largest Group . | . . . Highest-Rated Group . | . . . Highest-Rated Ally . | . . . Total Orders . | . . . Ally Attacks . | . . . Total Damage . | . . . Kills . | . . . Allies Corrupted . | . . . Allies Melted . | . . . Intel | -11 -10 -10 ------- Run | Yrd Mat Sub Active Infowar (turns) . | . . . Robot Analysis Total . | . . . Derelict Logs Recovered . | . . . Drone Launches . | . . . Drone Recoveries . | . . . Exploration | -11 -10 -10 ------------- Run | Yrd Mat Sub Turns Passed 719 | 92 335 292 Spaces Moved 644 | 48 145 451 Core 5 | 5 . . Treads 137 | 43 94 . Legs 51 | . 51 . Wheels . | . . . Hover . | . . . Flight 451 | . . 451 Fastest Speed 37 | 50 120 37 Average Speed 70 | 148 146 37 Slowest Speed 190 | 160 190 37 Overloaded Moves . | . . . Propulsion Burnouts . | . . . Robots Hopped . | . . . Potential Cave-ins . | . . . Cave-ins Triggered . | . . . Exploration Rate (%) 23 | 3 32 36 Regions Visited 2 Branch Regions 1 Pre-discovered Areas . | . . . Known Exits Taken . | . . . Unknown Exits Taken 2 | 1 1 . Scrap Searched . | . . . Spaces Dug . | . . . Terrain Destroyed 27 | . 27 . Melee . | . . . Projectile . | . . . AOE 27 | . 27 . Terrain Rammed . | . . . Walls Destroyed . | . . . Machines Disabled . | . . . Actions | -11 -10 -10 --------- Run | Yrd Mat Sub Total 812 | 59 211 542 Wait 77 | . 26 51 Move 642 | 47 144 451 Hop . | . . . Pick Up 7 | 2 5 . Fast Attach 10 | 6 3 1 Attach 4 | . . 4 Detach 6 | . . 6 Swap 11 | 1 3 7 Drop 8 | . 1 7 Fire 46 | 3 28 15 Melee . | . . . Ram . | . . . Kick 1 | . 1 . Crush . | . . . Escape Stasis . | . . . Rewire . | . . . Trap . | . . . Miscellaneous . | . . . Route ------- -11/Scrapyard -10/Materials (discovered 2 exits: [*Min] / [*Sub]) -10/Subcaves (discovered 1 exit: [*Mat]) History --------- Turn | Location | Event 9 | -11/Scrapyard | Discovered new exit (range 15) 93 | -11/Scrapyard | Entered Materials 174 | -10/Materials | Discovered new exit (range 16) 316 | -10/Materials | Build established: Mutant 330 | -10/Materials | Core integrity fell below 50% 418 | -10/Materials | Discovered new exit (range 9) 428 | -10/Materials | Entered Subcaves 429 | -10/Subcaves | Approached by a straggling Scientist 450 | -10/Subcaves | A swath of the cavern ceiling suddenly collapsed 497 | -10/Subcaves | Discovered new exit (range 4) 557 | -10/Subcaves | Shifting Twisted Machinery released Riot Gun 568 | -10/Subcaves | Shifting Twisted Machinery released Sub. Power Source 699 | -10/Subcaves | A swath of the cavern ceiling suddenly collapsed 710 | -10/Subcaves | Core integrity fell below 20% 720 | -10/Subcaves | Destroyed by 5N-XJC(R) with Subdweller Machine Gun Last Messages --------------- Sub. Power Source falls loose from the Twisted Machinery. 00570_ Acquired Sub. Power Source. 00571_ Dropped Sub. Power Source. N7-69T(c): "I think it's somewhere northwest of here" N7-69T(c): "I think it's somewhere west of here" 00655_ KB-9GK(u) tweaks Twisted Machinery. N7-69T(c): "I think it's somewhere northwest of here" 00696_ KB-9GK(u) tweaks Twisted Machinery. 00699_ EY-VP8(R) crushed by falling debris. A swath of the cavern ceiling suddenly collapses. 00711_ EY-VP8(R) destroyed. 00714_ Acquired 8 matter. 00719_ Chain reaction triggered in Sub. Power Source. 00719_ Riot Gun destroyed. 00719_ Destroyed Riot Gun. Map ----- +----------------------------------------------------+ | | | | | | | | | | | ?????????????????????????????????????????????????? | | ?????????????????????????????????????????????????? | | ?????????????????????????????????????????????????? | | ?????????????????????????????????????????????????? | | ?????????????????????????????????????????????????? | | ?????????????????????????????????????????????????? | | ?????????????????????????????????????????????????? | | ?????????????????????????????????????????????????? | | ?????????????????????????????????????????????????? | | ?????????????????????????????????????????????????? | | ?????????????????????????????????????????????????? | | ?????????????????????????????????????????????????? | | ?????????????????????????????????????????????????? | | ?????????????????????????????????????????????????? | | ?????????????????????????????????????????????????? | | ????????????????????????????#####????????????????? | | ???????????????????????????## #????????????????? | | ??????????????????????????##"" ##???? ? ?????????? | | ???????????????????????####""###???? ???????? | | ??????????????????###### # #; ???????? | | ?????????????????? #; @ & ;#????? ???????? | | ??????????????????? ### R& ;#????? ????????? | | ??????????????????## #;; & ;##????? ?????????? | | ??????????????????# ##; ###???### ??????????? | | ??????????????????? #;###;##????## #???????????? | | ???????????????????#;# ";##???### ###?????????? | | ??????????????????#;####;#???## "#??#??????? | | ??????????????????##?## ###### "#??""?????? | | ?????????????????????##"### "#??""" ??? | | ?????????????????????#""" ##? "" ?? | | ?????????????????????#### # "##"" ? | | ??????????????????????#####"""## """ """""""# | | ??????????????????????????## ### """"""" # | | ?????????????????????????? "" ## ## # """ "" | | ?????????????????????????" """# " "" | | ???????????????????????? " # "" """" | | ??????????????????????? ### # "" ###?? | | ??????????????????????? ???# ### ##???? | | ??????????????????????? ???# ?# ##???? | | ???????????????????????????## # ??# #???? | | ????????????????????????????# ##??## #####???? | | ????????????????????????????#"#????#### ######## | | ????????????????????????????#""??????# # "#""# | | ???????????????????????????##"#??????# | | ???????????????????????????#" ##?????# #### ## | +----------------------------------------------------+ Best States ------------- Heat Dissipation 25 Energy Generation 14 Energy Capacity 160 Matter Stores 300 Matter Capacity 300 Sight Range 16 Terrain Scan Density 10 Armor Coverage 150 Evasion (%) 62 Recoil Reduction 2 Item Schematics ----------------- None Robot Schematics ------------------ None Fabricated ------------ Nothing Repaired ---------- Nothing Studied --------- None Alien Tech Used ----------------- None Achievements -------------- None Challenges ------------ None Game ------ Seed TransportGrenadeWeb Manual? 0 Play Time 00:09:45 Cumulative 138.3 hours Start 2026.04.16 @ 22:09:49 End 2026.04.16 @ 22:16:16 Sessions 1 Manual Loads 0 Difficulty Rogue Special Mode None Game No. 212 Rogue 212 Adventurer 0 Explorer 0 Win Type - Total 1 Types 1/0/0/0/0/0/0/0/0/0 Lore% 50 Gallery% 54 Achievement% 41 Wizard Run 0 Options --------- Layout 1 ASCII 0 Keyboard 1 Movement Arrows Keybinds 0 Fullscreen 1 Font 24/Smallcaps Map View 50x35 Zoom Use 0% Tactical HUD 1 Map Filters NONE Filters NONE Steam 1 RUN: 3c21d96f-b3b4-43f0-89fd-344282763697